fUSD/lending_fUSD_20240708
["ID","MTS","AMOUNT","RATE_DAILY","PERIOD"]
[331433063,1720401039785,-3277.546201,0.00013529,2]
[331433064,1720401039795,-167.560964,0.00013529,2]
[331433065,1720401039806,-162.955972,0.00013529,2]
[331433066,1720401039816,-162.955972,0.00013529,2]
[331433067,1720401039826,-701.767071,0.00013529,2]
[331433068,1720401039837,-197.974977,0.00013529,2]
[331433069,1720401039848,-1803.953298,0.00013529,2]
[331433070,1720401039859,-179.954348,0.00013529,2]
[331433071,1720401039870,-167.994401,0.00013529,2]
[331433072,1720401039881,-179.954348,0.00013529,2]
[331433073,1720401039892,-268.791041,0.00013529,2]
[331433074,1720401039902,-2827.383912,0.00013529,2]
[331433075,1720401039915,-193.75241,0.00013529,2]
[331433076,1720401039935,-184.490051,0.00013529,2]
[331433077,1720401039946,-287.218127,0.00013529,2]
[331433078,1720401039957,-285.393429,0.00013529,2]
[331433079,1720401039968,-264.344235,0.00013529,2]
[331433080,1720401039979,-169.224813,0.00013529,2]
[331433081,1720401039989,-300.0,0.00013545,2]
[331433082,1720401039999,-1600.0,0.00013545,2]
[331433083,1720401040009,-87299.9927817,0.00013562,2]
[331433084,1720401040025,-55000.0,0.00013562,2]
[331433085,1720401040045,-263.73556792,0.00012314,2]
[331433086,1720401040056,-84.25589742,0.00013562,2]
[331433087,1720401040072,-470.5005,0.00013562,2]
[331433088,1720401040085,-1695.55387806,0.00013562,2]
[331433089,1720401040097,-2190.355456,0.00013562,2]
[331433090,1720401040109,-3665.8547926,0.00013562,2]
[331433091,1720401040121,-590.60024379,0.00013562,2]
[331433092,1720401040133,-1807.94453318,0.00013562,2]
[331433093,1720401040146,-2904.94207015,0.00013562,2]
[331433094,1720401040259,-265.66760513,0.00012302,2]
[331433095,1720401040270,-282.06007174,0.00013562,2]
[331433096,1720401040287,-684.7193488,0.00013562,2]
[331433097,1720401040300,-31164.22042656,0.00013562,2]
[331433098,1720401040310,-177.65772178,0.00013564,2]
[331433099,1720401040321,-1095.0,0.00013574,2]
[331433100,1720401040332,-149476.16421074,0.00013574,2]
[331433101,1720401040345,-292.73680835,0.00013574,2]
[331433102,1720401040357,-2081.42078183,0.00013574,2]
[331433103,1720401040378,-494.82834745,0.00013574,2]
[331433104,1720401040391,-700.68832229,0.00013574,2]
[331433105,1720401040405,-500.8266143,0.00013574,2]
[331433106,1720401040424,-419.99682058,0.00013574,2]
[331433107,1720401040442,-10964.37468,0.00013574,2]
[331433108,1720401040455,-16440.0,0.00013574,2]
[331433109,1720401040468,-26788.67672086,0.00013574,2]
[331433110,1720401040481,-858.05009185,0.00013574,2]
[331433111,1720401040498,-550.4499,0.00013574,2]
[331433112,1720401040511,-4398.77999999,0.00013574,2]
[331433113,1720401040525,-54699.99999999,0.00013574,2]
[331433147,1720401042866,-386.80000011,0.00013574,2]
[331433158,1720401043015,-1021.9481656,0.00013574,2]
[331433159,1720401043280,-551.65203341,0.00013574,2]
[331433189,1720401043767,-5501.2344814,0.00013574,2]
[331433191,1720401043782,-595.49665749,0.00013574,2]
[331433193,1720401043793,-2741.91952689,0.00013574,2]
[331433196,1720401043804,-749.999925,0.00013574,2]
[331433306,1720401047441,-215.39516276,0.00013013,2]
[331433307,1720401047451,-1137.0,0.00013574,2]
[331433308,1720401047460,-4384.23314172,0.00013574,2]
[331433313,1720401048659,-3295.38503,0.00013574,2]
[331433314,1720401048671,-4432.77824369,0.00013574,2]
[331433315,1720401048686,-47635.84688,0.00013574,2]
[331433316,1720401048702,-3572.6790832,0.00013574,2]
[331433317,1720401048713,-3027.94873354,0.00013574,2]
[331433318,1720401048725,-97043.69009427,0.00013574,2]
[331433319,1720401048736,-467.78623122,0.00013574,2]
[331433320,1720401048747,-1433.25,0.00013574,2]
[331433321,1720401048758,-5597.94392212,0.00013574,2]
[331433322,1720401048770,-16480.28242071,0.00013574,2]
[331433323,1720401048782,-752.35400002,0.00013574,2]
[331433324,1720401048799,-13840.50615542,0.00013574,2]
[331433325,1720401048835,-5650.6,0.00013574,2]
[331433326,1720401048847,-2326.73900868,0.00013574,2]
[331433327,1720401048858,-2904.07280389,0.00013574,2]
[331433328,1720401048870,-5491.0,0.00013574,2]
[331433329,1720401048881,-27600.0,0.00013574,2]
[331433330,1720401227606,2296.19581584,0.00023,120]
[331433331,1720401254586,420.52,0.00010795,2]
[331433332,1720401470889,269.77961105,0.00011199,2]
[331433333,1720401472627,319.5989622,0.00011199,2]
[331433334,1720401485104,403.34944025,0.00011199,2]
[331433335,1720401503443,242.40389105,0.00011199,2]
[331433337,1720401645229,298.28065243,0.00011199,2]
[331433338,1720401772696,1342.22856252,0.00011199,2]
[331433339,1720401792222,2532.47831404,0.00011199,2]
[331433349,1720402019560,399.49,0.00010683,2]
[331433368,1720402116397,323.01377394,0.00011199,2]
[331433374,1720402230501,266.6975913,0.00011199,2]
[331433375,1720402230845,180.45,0.0001399,30]
[331433425,1720402233586,-215.34251596,0.00012314,2]
[331433427,1720402233597,-250.0,0.00012559,2]
[331433430,1720402233621,-1000.0,0.00012596,2]
[331433432,1720402233631,-978.4295,0.000128,2]
[331433434,1720402233642,-196.18,0.00012822,2]
[331433436,1720402233655,-7991.75,0.000129,2]
[331433438,1720402233666,-6066.33991681,0.000129,2]
[331433443,1720402233705,-3065.99360389,0.000129,2]
[331433446,1720402233729,-5434.46805712,0.000129,2]
[331433497,1720402234309,226.35454407,0.00011199,2]
[331433533,1720402238087,-709.9534,0.0001241,2]
[331433534,1720402238105,-1500.0,0.0001241,2]
[331433535,1720402238119,-1078.0799953,0.0001241,2]
[331433536,1720402238132,-1095.36771121,0.0001241,2]
[331433537,1720402238146,-1840.7599115,0.0001241,2]
[331433538,1720402238159,-3775.83898199,0.0001241,2]
[331433539,1720402238170,-8126.47073266,0.000129,2]
[331433540,1720402238278,-4162.55185861,0.000129,2]
[331433541,1720402238291,-288.79973091,0.000129,2]
[331433542,1720402238303,-399.49,0.00012947,2]
[331433543,1720402238315,-279.914449,0.00013014,2]
[331433544,1720402238327,-661.76173586,0.00013039,2]
[331433545,1720402238345,-619.23826414,0.00013039,2]
[331433546,1720402238359,-863.0311051,0.00013128,2]
[331433549,1720402240246,-23.91569296,0.00013128,2]
[331433550,1720402240259,-356.30245499,0.00013128,2]
[331433551,1720402240271,-279.914449,0.00013177,2]
[331433552,1720402240284,-356.0,0.000132,2]
[331433553,1720402240297,-579.29524575,0.000132,2]
[331433554,1720402240311,-420.70475425,0.000132,2]
[331433555,1720402240323,-225.0,0.000132,2]
[331433556,1720402240339,-279.914449,0.0001334,2]
[331433557,1720402240351,-2238.17927325,0.0001334,2]
[331433558,1720402240371,-3034.33072675,0.0001334,2]
[331433559,1720402240383,-978.4295,0.00013465,2]
[331433560,1720402240395,-100.13308634,0.00013474,2]
[331433561,1720402240410,-59.56080777,0.00013474,2]
[331433562,1720402240423,-163.92268902,0.00013474,2]
[331433563,1720402240435,-130.26100683,0.00013474,2]
[331433564,1720402240450,-171.18939317,0.00013474,2]
[331433565,1720402240463,-783.73763571,0.00013474,2]
[331433566,1720402240540,-511.4,0.000132,2]
[331433567,1720402240553,-519.55276429,0.00013474,2]
[331433568,1720402240565,-279.914449,0.00013503,2]
[331433569,1720402240578,-1600.0,0.00013507,2]
[331433570,1720402240590,-628.92551956,0.00013543,2]
[331433571,1720402240601,-159.69389411,0.00013559,2]
[331433572,1720402240613,-2361.126955,0.00013565,2]
[331433573,1720402240625,-2148.6691943,0.00013565,2]
[331433574,1720402240636,-23086.18445699,0.00013565,2]
[331433575,1720402240651,-253.94099997,0.00013565,2]
[331433590,1720402243282,-13672.56494424,0.00013565,2]
[331433591,1720402243293,-5074.10843489,0.0001357,2]
[331433592,1720402243304,-420.33099,0.00013574,2]
[331433593,1720402243314,-8399.89522651,0.00013574,2]
[331433603,1720402245749,-549.99,0.00013574,2]
[331433606,1720402246234,-1583.8401071,0.00013574,2]
[331433607,1720402248132,-1600.0,0.00013574,2]
[331433608,1720402248142,-39.1423,0.00013574,2]
[331433609,1720402248153,-54577.37373818,0.00013574,2]
[331433610,1720402248165,-801.427505,0.00013574,2]
[331433611,1720402248176,-2727.75,0.00013574,2]
[331433613,1720402251702,668.12933404,0.00011199,2]
[331433614,1720402272830,965.46698659,0.00011199,2]
[331433618,1720402437292,2825.01272442,9e-05,2]
[331433619,1720402445664,309.65657693,0.000118,2]
[331433621,1720402483504,2211.35200667,0.00011199,2]
[331433622,1720402489874,2118.85870182,0.00011199,2]
[331433623,1720402515906,1072.21662661,0.00011199,2]
[331433625,1720402547984,439.87,0.00010311,2]
[331433627,1720402581860,483.95854341,0.00011199,2]
[331433628,1720402584201,1387.04989964,0.00011199,2]
[331433630,1720402594647,251.36379819,0.00011199,2]
[331433632,1720402607851,1327.354736,0.0001199,2]
[331433633,1720402609306,493.37065169,0.00011199,2]
[331433635,1720402637510,477.118425,0.00011199,2]
[331433636,1720402640362,400.25036256,0.00011199,2]
[331433637,1720402649198,338.88286354,0.00011199,2]
[331433639,1720402652436,319.17975991,0.00011199,2]
[331433640,1720402661825,155.22692239,0.00011199,2]
[331433641,1720402668685,311.6710268,0.00011199,2]
[331433642,1720402677182,331.34392164,0.00011199,2]
[331433643,1720402678793,155.38678123,0.00011199,2]
[331433644,1720402681839,208.95537732,0.00011199,2]
[331433645,1720402685896,179.45209663,0.00011199,2]
[331433646,1720402696901,179.45209663,0.00011199,2]
[331433647,1720402710985,309.05717689,0.00011199,2]
[331433648,1720402841189,368.85143855,0.00011199,2]
[331433649,1720402858331,250.0,0.00011865,2]
[331433650,1720402880871,155.20529881,0.00011199,2]
[331433651,1720402892531,-5660.0,0.00015,10]
[331433652,1720402917169,23900.0,0.00011839,2]
[331433653,1720402933130,250.0,0.00011852,2]
[331433654,1720402944036,1389.3920384,0.00011199,2]
[331433656,1720403026293,1088.28,0.00011918,2]
[331433665,1720403071238,320.91,0.00011924,2]
[331433669,1720403144610,1374.53593359,0.000115,2]
[331433672,1720403180240,417.87,9.972e-05,2]
[331433673,1720403197860,196.18,0.00011874,2]
[331433678,1720403281958,155.0,0.00011199,2]
[331433692,1720403432828,-893.88077685,0.00012122,2]
[331433694,1720403432840,-463.7839458,0.00012122,2]
[331433695,1720403432852,-337.21932,0.00012122,2]
[331433706,1720403433043,-295.21976923,0.00012122,2]
[331433935,1720403439581,-377.72972239,0.00012122,2]
[331433939,1720403440359,-285.915,0.00012006,2]
[331433941,1720403440371,-642.885,0.00012006,2]
[331433943,1720403440380,-773.10103444,0.00012122,2]
[331433944,1720403440590,-1262.16826599,0.00012122,2]
[331433945,1720403440599,-710.67887984,0.000122,2]
[331433946,1720403440609,-1000.0,0.00012222,2]
[331433947,1720403440620,-417.87,0.00012236,2]
[331433948,1720403440630,-227.24934482,0.00012302,2]
[331433949,1720403440639,-177.51,0.00012361,2]
[331433950,1720403440650,-973.89,0.00012361,2]
[331433951,1720403440659,-499.99,0.0001237,2]
[331433952,1720403440669,-2188.74600729,0.00012433,2]
[331433953,1720403440685,-493.15722484,0.00012433,2]
[331433954,1720403440698,-3570.21520961,0.00012433,2]
[331433955,1720403440711,-694.96611744,0.00012433,2]
[331433956,1720403440727,-410.71053525,0.00012433,2]
[331433959,1720403443846,-1429.351905,0.00012433,2]
[331433962,1720403443858,-301.905,0.00012433,2]
[331433964,1720403443873,-14403.94800057,0.00012433,2]
[331433965,1720403443882,-1000.0,0.000125,2]
[331433966,1720403443892,-169.94,0.00012514,2]
[331433967,1720403443902,-169.94,0.00012549,2]
[331433968,1720403443911,-2.81095669,0.00012583,2]
[331433969,1720403443924,-167.12904331,0.00012583,2]
[331433970,1720403443933,-130.11281042,0.00012617,2]
[331433981,1720403446509,-39.82718958,0.00012617,2]
[331433982,1720403446519,-169.94,0.00012652,2]
[331433983,1720403446528,-169.94,0.00012686,2]
[331433984,1720403446537,-169.94,0.0001272,2]
[331433985,1720403446547,-169.94,0.00012755,2]
[331433986,1720403446556,-169.94,0.00012789,2]
[331433987,1720403446566,-169.94,0.00012823,2]
[331433988,1720403446575,-27.68557778,0.00012858,2]
[331433989,1720403446587,-142.25442222,0.00012858,2]
[331433990,1720403446596,-169.94,0.00012892,2]
[331433991,1720403446606,-169.94,0.00012926,2]
[331433992,1720403446616,-65.16557778,0.00012961,2]
[331433993,1720403446628,-104.77442222,0.00012961,2]
[331433994,1720403446637,-2220.80850854,0.00012987,2]
[331433995,1720403446774,-2171.65293496,0.00012987,2]
[331433996,1720403446784,-169.94,0.00012995,2]
[331433997,1720403446794,-554.95920614,0.00012997,2]
[331434013,1720403752235,394.45,0.00010415,2]
[331434022,1720403852713,480.79150416,0.00011199,2]
[331434025,1720403879322,123.34048063,0.00011199,2]
[331434026,1720403879348,178.50327553,0.00011199,2]
[331434027,1720403882449,155.0,0.00011199,2]
[331434028,1720403893275,227.24934482,0.00011199,2]
[331434029,1720403907019,155.55476513,0.00011199,2]
[331434030,1720403933554,156.23692109,0.00011199,2]
[331434040,1720404315491,155.0,0.00011199,2]
[331434048,1720404411451,227.24934482,0.00011199,2]
[331434079,1720404474742,374.72,9.618e-05,2]
[331434080,1720404524982,5828.07994181,0.00010614,2]
[331434081,1720404525016,64689.92005819,0.00010614,2]
[331434084,1720404581087,-2981.72,0.00011504,2]
[331434085,1720404581122,-177.51,0.00011516,2]
[331434086,1720404581152,-250.0,0.00011518,2]
[331434087,1720404581183,-1440.98,0.00011524,2]
[331434088,1720404581216,-250.0,0.00011537,2]
[331434089,1720404581247,-3064.84432271,0.00011564,2]
[331434090,1720404581286,-8165.05432271,0.00011564,2]
[331434091,1720404581322,-7745.69135458,0.00011564,2]
[331434092,1720404581352,-172.02,0.00011579,2]
[331434093,1720404581380,-247.34296813,0.0001158,2]
[331434094,1720404581418,-1034.36703187,0.0001158,2]
[331434095,1720404581449,-66.38978005,0.00011622,2]
[331434096,1720404587750,151.070809,0.00025,69]
[331434097,1720404594589,151.070809,0.00025,70]
[331434098,1720404632284,-101.28021995,0.00011622,2]
[331434100,1720404632294,-167.67,0.00011744,2]
[331434102,1720404632303,-167.67,0.00011865,2]
[331434103,1720404632313,-13.37978005,0.00011882,2]
[331434104,1720404632502,-361.34021995,0.00011882,2]
[331434105,1720404632513,-499.99,0.00011889,2]
[331434106,1720404632522,-22.05617556,0.00011986,2]
[331434107,1720404632534,-145.61382444,0.00011986,2]
[331434108,1720404632543,-150.99,0.00012012,2]
[331434109,1720404632553,-167.67,0.00012107,2]
[331434110,1720404632562,-251.03,0.00012205,2]
[331434111,1720404632572,-165.81,0.00012205,2]
[331434112,1720404632581,-150.99,0.00012205,2]
[331434113,1720404632590,-1000.0,0.00012205,2]
[331434114,1720404632600,-251.03,0.00012208,2]
[331434115,1720404632609,-251.03,0.00012211,2]
[331434116,1720404632619,-251.03,0.00012214,2]
[331434117,1720404632628,-192.43851475,0.00012217,2]
[331434118,1720404632640,-58.59148525,0.00012217,2]
[331434119,1720404632649,-251.03,0.00012221,2]
[331434120,1720404632659,-251.03,0.00012224,2]
[331434121,1720404632668,-230.5967386,0.00012227,2]
[331434122,1720404632679,-20.4332614,0.00012227,2]
[331434123,1720404632689,-167.67,0.00012228,2]
[331434124,1720404632698,-251.03,0.0001223,2]
[331434125,1720404632707,-251.03,0.00012233,2]
[331434126,1720404632716,-251.03,0.00012237,2]
[331434127,1720404632726,-251.03,0.0001224,2]
[331434128,1720404632735,-251.03,0.00012243,2]
[331434129,1720404632743,-217.04492321,0.00012246,2]
[331434130,1720404632757,-33.98507679,0.00012246,2]
[331434131,1720404632766,-251.03,0.0001225,2]
[331434132,1720404632775,-251.03,0.00012253,2]
[331434133,1720404632785,-251.03,0.00012256,2]
[331434134,1720404632794,-251.03,0.00012259,2]
[331434135,1720404632803,-251.03,0.00012262,2]
[331434136,1720404632812,-251.03,0.00012266,2]
[331434137,1720404632821,-151.18809848,0.00012304,2]
[331434138,1720404632830,-155.0,0.00012314,2]
[331434139,1720404632839,-198.21,0.00012334,2]
[331434140,1720404632848,-355.08,0.00012356,2]
[331434141,1720404632858,-164.97,0.00012356,2]
[331434142,1720404632867,-355.08,0.00012356,2]
[331434144,1720404632876,-164.97,0.00012356,2]
[331434146,1720404632885,-164.97,0.00012356,2]
[331434148,1720404632895,-355.08,0.00012356,2]
[331434150,1720404632904,-317.71,0.00012356,2]
[331434152,1720404632914,-348.74,0.00012356,2]
[331434154,1720404632923,-697.69222662,0.0001261,2]
[331434156,1720404632932,-697.69222663,0.0001261,2]
[331434158,1720404632942,-1064.37935,0.0001287,2]
[331434160,1720404632951,-291.867,0.00012977,2]
[331434162,1720404632960,-1492.326,0.00012977,2]
[331434165,1720404632970,-5197.968,0.00012977,2]
[331434166,1720404632978,-1202.512,0.00012977,2]
[331434168,1720404632987,-21205.295,0.00012977,2]
[331434170,1720404632996,-11711.81735407,0.00012997,2]
[331434173,1720404633009,-1000.0,0.00013,2]
[331434175,1720404633018,-691.968156,0.00013014,2]
[331434177,1720404633028,-400.0,0.000131,4]
[331434179,1720404633036,-150.12,0.00013115,2]
[331434181,1720404633046,-150.0,0.00013115,2]
[331434183,1720404633059,-150.0,0.00013115,2]
[331434185,1720404633069,-333.626,0.00013115,2]
[331434187,1720404633078,-197.67,0.00013115,2]
[331434189,1720404633087,-2384.953,0.00013115,2]
[331434191,1720404633096,-1298.941,0.00013115,2]
[331434193,1720404633105,-162.037,0.00013115,2]
[331434195,1720404633114,-549.865,0.00013115,2]
[331434197,1720404633124,-1995.979,0.00013115,2]
[331434199,1720404633135,-283.999,0.00013115,2]
[331434201,1720404633148,-3261.055,0.00013115,2]
[331434203,1720404633158,-886.99928587,0.00013128,2]
[331434205,1720404633167,-208.6813478,0.00013128,2]
[331434207,1720404633177,-691.968156,0.00013177,2]
[331434209,1720404633187,-354.94,0.00013178,2]
[331434211,1720404633197,-150.69,0.00013178,2]
[331434213,1720404633206,-900.0,0.000132,4]
[331434214,1720404633218,-1000.0,0.00013274,2]
[331434215,1720404633227,-150.0,0.000133,2]
[331434216,1720404633236,-151.0772783,0.000133,2]
[331434217,1720404633246,-1400.0,0.000133,4]
[331434218,1720404633258,-691.968156,0.0001334,2]
[331434219,1720404633266,-18602.74794094,0.00013374,2]
[331434220,1720404633278,-1017.04312744,0.00013374,2]
[331434222,1720404633289,-422.57359696,0.00013374,2]
[331434224,1720404633300,-1001.55012815,0.00013374,2]
[331434513,1720404638697,-1049.663,0.00012977,2]
[331434514,1720404638707,-700.14910694,0.00013374,2]
[331434515,1720404638719,-8170.13549545,0.00013374,2]
[331434593,1720404640775,-1984.25452929,0.00013374,2]
[331434594,1720404641443,-37204.37345565,0.00013374,2]
[331434595,1720404641455,-62923.13661918,0.00013374,2]
[331434596,1720404641464,-151.07727828,0.0001339,2]
[331434597,1720404641473,-1900.0,0.000134,4]
[331434598,1720404641483,-500.0,0.00013464,2]
[331434599,1720404641492,-500.0,0.00013465,2]
[331434600,1720404641501,-321.72300056,0.00013474,2]
[331434601,1720404641512,-598.2863,0.00013474,2]
[331434602,1720404641521,-310.4515,0.00013474,2]
[331434603,1720404641531,-167.36331763,0.0001348,2]
[331434604,1720404641540,-151.07727828,0.0001348,2]
[331434605,1720404641549,-2400.0,0.000135,4]
[331434606,1720404641558,-691.968156,0.00013503,2]
[331434607,1720404641569,-227.24934482,0.00013516,2]
[331434608,1720404641578,-151.0,0.00013574,2]
[331434609,1720404641588,-151.0,0.00013574,2]
[331434610,1720404641598,-151.0,0.00013574,2]
[331434611,1720404641607,-151.0,0.00013574,2]
[331434612,1720404641617,-151.0,0.00013574,2]
[331434613,1720404641627,-236.921477,0.00013574,2]
[331434614,1720404641636,-236.921477,0.00013574,2]
[331434615,1720404641646,-250.602422,0.00013574,2]
[331434616,1720404641656,-467.172915,0.00013574,2]
[331434617,1720404641665,-250.602422,0.00013574,2]
[331434618,1720404641675,-467.172915,0.00013574,2]
[331434619,1720404641684,-151.0,0.00013574,2]
[331434620,1720404641694,-151.0,0.00013574,2]
[331434621,1720404641703,-151.0,0.00013574,2]
[331434622,1720404641712,-955.51508,0.00013574,2]
[331434623,1720404641722,-151.0,0.00013574,2]
[331434624,1720404641732,-955.51508,0.00013574,2]
[331434625,1720404641741,-528.897494,0.00013574,2]
[331434626,1720404641751,-528.897494,0.00013574,2]
[331434627,1720404641766,-180.134888,0.00013574,2]
[331434628,1720404641776,-180.134888,0.00013574,2]
[331434629,1720404641786,-151.0,0.00013574,2]
[331434630,1720404641795,-151.0,0.00013574,2]
[331434631,1720404641806,-151.0,0.00013574,2]
[331434632,1720404641815,-151.0,0.00013574,2]
[331434633,1720404641824,-1339.150764,0.00013574,2]
[331434634,1720404641834,-1339.150764,0.00013574,2]
[331434635,1720404641843,-423.233685,0.00013574,2]
[331434636,1720404641852,-423.233685,0.00013574,2]
[331434637,1720404641862,-198.418224,0.00013574,2]
[331434638,1720404641871,-198.418224,0.00013574,2]
[331434639,1720404641880,-1460.33893,0.00013574,2]
[331434640,1720404641890,-151.0,0.00013574,2]
[331434641,1720404641899,-1460.33893,0.00013574,2]
[331434642,1720404641908,-190.485288,0.00013574,2]
[331434643,1720404641917,-624.530763,0.00013574,2]
[331434644,1720404641926,-624.530763,0.00013574,2]
[331434645,1720404641935,-352.848677,0.00013574,2]
[331434646,1720404641945,-352.848677,0.00013574,2]
[331434647,1720404641954,-151.0,0.00013574,2]
[331434648,1720404641963,-151.0,0.00013574,2]
[331434649,1720404641972,-151.0,0.00013574,2]
[331434650,1720404641982,-167.268414,0.00013574,2]
[331434651,1720404641991,-353.179746,0.00013574,2]
[331434652,1720404642000,-353.179746,0.00013574,2]
[331434653,1720404642014,-331.294246,0.00013574,2]
[331434654,1720404642024,-331.294246,0.00013574,2]
[331434655,1720404642033,-151.0,0.00013574,2]
[331434656,1720404642043,-593.266294,0.00013574,2]
[331434657,1720404642052,-593.266294,0.00013574,2]
[331434658,1720404642062,-151.0,0.00013574,2]
[331434659,1720404642071,-1530.403012,0.00013574,2]
[331434660,1720404642080,-151.0,0.00013574,2]
[331434661,1720404642090,-1530.403012,0.00013574,2]
[331434662,1720404642100,-151.0,0.00013574,2]
[331434663,1720404642110,-1093.790114,0.00013574,2]
[331434664,1720404642119,-2395.491396,0.00013574,2]
[331434665,1720404642128,-2395.491396,0.00013574,2]
[331434666,1720404642137,-1093.790114,0.00013574,2]
[331434667,1720404642151,-274.349849,0.00013574,2]
[331434668,1720404642160,-274.349849,0.00013574,2]
[331434669,1720404642169,-1896.745026,0.00013574,2]
[331434670,1720404642180,-240.100535,0.00013574,2]
[331434671,1720404642189,-240.100535,0.00013574,2]
[331434672,1720404642199,-187.579865,0.00013574,2]
[331434673,1720404642208,-151.0,0.00013574,2]
[331434674,1720404642217,-1824.37043,0.00013574,2]
[331434675,1720404642228,-151.0,0.00013574,2]
[331434676,1720404642238,-152.613223,0.00013574,2]
[331434677,1720404642247,-152.613223,0.00013574,2]
[331434678,1720404642258,-152.613223,0.00013574,2]
[331434679,1720404642271,-152.613223,0.00013574,2]
[331434680,1720404642280,-151.0,0.00013574,2]
[331434681,1720404642289,-151.0,0.00013574,2]
[331434682,1720404642298,-151.0,0.00013574,2]
[331434683,1720404642308,-151.0,0.00013574,2]
[331434684,1720404642318,-151.0,0.00013574,2]
[331434685,1720404642327,-151.0,0.00013574,2]
[331434686,1720404642341,-572.783912,0.00013574,2]
[331434687,1720404642350,-572.783912,0.00013574,2]
[331434688,1720404642360,-572.783912,0.00013574,2]
[331434689,1720404642369,-572.783912,0.00013574,2]
[331434690,1720404642378,-288.82888,0.00013574,2]
[331434691,1720404642388,-1236.296817,0.00013574,2]
[331434692,1720404642397,-288.82888,0.00013574,2]
[331434693,1720404642406,-222.289952,0.00013574,2]
[331434694,1720404642416,-1236.296817,0.00013574,2]
[331434695,1720404642425,-1420.177249,0.00013574,2]
[331434696,1720404642434,-222.289952,0.00013574,2]
[331434697,1720404642443,-1420.177249,0.00013574,2]
[331434698,1720404642453,-1420.177249,0.00013574,2]
[331434699,1720404642462,-1420.177249,0.00013574,2]
[331434700,1720404642471,-1363.09864463,0.00013574,2]
[331434701,1720404642485,-890.90712876,0.00013574,2]
[331434702,1720404642496,-366.15346261,0.00013574,2]
[331434703,1720404642505,-497.09971519,0.00013574,2]
[331434704,1720404642519,-347.833572,0.00013574,2]
[331434705,1720404642530,-766.54491549,0.00013574,2]
[331434706,1720404642541,-410.55386428,0.00013574,2]
[331434707,1720404642553,-598.12716904,0.00013574,2]
[331434708,1720404642562,-181.540596,0.00013574,2]
[331434709,1720404642571,-181.540596,0.00013574,2]
[331434710,1720404642581,-299.139726,0.00013574,2]
[331434711,1720404642590,-299.139726,0.00013574,2]
[331434712,1720404642600,-151.0,0.00013574,2]
[331434713,1720404642610,-151.0,0.00013574,2]
[331434714,1720404642619,-410.858536,0.00013574,2]
[331434715,1720404642629,-410.858536,0.00013574,2]
[331434716,1720404642638,-410.858536,0.00013574,2]
[331434717,1720404642648,-215.35473491,0.00013574,2]
[331434718,1720404642660,-195.50380109,0.00013574,2]
[331434719,1720404642670,-370.880703,0.00013574,2]
[331434720,1720404642679,-338.11113,0.00013574,2]
[331434721,1720404642688,-370.880703,0.00013574,2]
[331434722,1720404642698,-12.59041534,0.00013574,2]
[331434723,1720404642710,-325.52071466,0.00013574,2]
[331434724,1720404642719,-370.880703,0.00013574,2]
[331434725,1720404642729,-370.880703,0.00013574,2]
[331434726,1720404642738,-338.11113,0.00013574,2]
[331434727,1720404642748,-338.11113,0.00013574,2]
[331434728,1720404642760,-203.65292734,0.00013574,2]
[331434729,1720404642787,-2274.80991266,0.00013574,2]
[331434730,1720404642796,-2478.46284,0.00013574,2]
[331434731,1720404642806,-2478.46284,0.00013574,2]
[331434732,1720404642815,-2478.46284,0.00013574,2]
[331434733,1720404642824,-161.73175,0.00013574,2]
[331434734,1720404642833,-161.73175,0.00013574,2]
[331434735,1720404642842,-161.73175,0.00013574,2]
[331434736,1720404642851,-161.73175,0.00013574,2]
[331434737,1720404642859,-151.0,0.00013574,2]